[Event "Titled Tuesday Blitz May 9 Late 2023"]
[White "Sowa, Ryan"]
[Black "Qiao, Cindy"]
[WhiteFideId "30901693"]
[BlackFideId "2620243"]
[WhiteElo "2650"]
[BlackElo "1777"]
[Result "1/2-1/2"]
[Round "04"]
[TimeControl "180+2"]
[Date "2023.05.09"]
[WhiteClock "0:00:09"]
[BlackClock "0:00:04"]

1. Nf3 {[%clk 0:03:00]}  d5 {[%clk 0:02:59]} 2. b3 {[%clk 0:02:52]}  Nf6 {[%clk 0:02:57]} 3. Bb2 {[%clk 0:02:52]}  e6 {[%clk 0:02:54]} 4. g3 {[%clk 0:02:47]}  Be7 {[%clk 0:02:53]} 5. Bg2 {[%clk 0:02:40]}  b6 {[%clk 0:02:50]} 6. O-O {[%clk 0:02:36]}  O-O {[%clk 0:02:48]} 7. c4 {[%clk 0:02:35]}  Bb7 {[%clk 0:02:48]} 8. Ne5 {[%clk 0:02:25]}  c5 {[%clk 0:02:45]} 9. d3 {[%clk 0:02:23]}  Nc6 {[%clk 0:02:44]} 10. Nxc6 {[%clk 0:02:21]}  Bxc6 {[%clk 0:02:45]} 11. Nd2 {[%clk 0:02:21]}  Rc8 {[%clk 0:02:43]} 12. Nf3 {[%clk 0:02:20]}  d4 {[%clk 0:02:39]} 13. b4 {[%clk 0:02:17]}  Qc7 {[%clk 0:02:31]} 14. b5 {[%clk 0:02:15]}  Bb7 {[%clk 0:02:28]} 15. e4 {[%clk 0:02:15]}  dxe3 {[%clk 0:02:23]} 16. fxe3 {[%clk 0:02:15]}  Rcd8 {[%clk 0:02:23]} 17. Qe2 {[%clk 0:02:13]}  Nd7 {[%clk 0:02:01]} 18. e4 {[%clk 0:02:11]}  Bf6 {[%clk 0:01:58]} 19. e5 {[%clk 0:02:03]}  Be7 {[%clk 0:01:57]} 20. Rae1 {[%clk 0:02:01]}  a6 {[%clk 0:01:56]} 21. a4 {[%clk 0:02:00]}  axb5 {[%clk 0:01:56]} 22. axb5 {[%clk 0:02:01]}  Ra8 {[%clk 0:01:56]} 23. Bc1 {[%clk 0:02:02]}  Rfd8 {[%clk 0:01:53]} 24. Bg5 {[%clk 0:01:51]}  Nf8 {[%clk 0:01:51]} 25. Bxe7 {[%clk 0:01:47]}  Qxe7 {[%clk 0:01:52]} 26. Ra1 {[%clk 0:01:36]}  Rxa1 {[%clk 0:01:50]} 27. Rxa1 {[%clk 0:01:37]}  Ra8 {[%clk 0:01:45]} 28. Rxa8 {[%clk 0:01:37]}  Bxa8 {[%clk 0:01:46]} 29. Qa2 {[%clk 0:01:30]}  Qd8 {[%clk 0:01:43]} 30. Qe2 {[%clk 0:01:11]}  Bxf3 {[%clk 0:01:39]} 31. Qxf3 {[%clk 0:00:57]}  Qd4+ {[%clk 0:01:40]} 32. Kf1 {[%clk 0:00:58]}  h6 {[%clk 0:01:37]} 33. Qc6 {[%clk 0:00:46]}  Qxd3+ {[%clk 0:01:36]} 34. Kf2 {[%clk 0:00:43]}  Qd4+ {[%clk 0:01:34]} 35. Kf1 {[%clk 0:00:40]}  Qxc4+ {[%clk 0:01:34]} 36. Kg1 {[%clk 0:00:41]}  Qd4+ {[%clk 0:01:33]} 37. Kf1 {[%clk 0:00:40]}  c4 {[%clk 0:01:33]} 38. Be4 {[%clk 0:00:26]}  c3 {[%clk 0:01:28]} 39. Ke2 {[%clk 0:00:26]}  Qd2+ {[%clk 0:01:18]} 40. Kf3 {[%clk 0:00:26]}  Qd4 {[%clk 0:01:17]} 41. h4 {[%clk 0:00:25]}  Qxe5 {[%clk 0:00:57]} 42. Qxb6 {[%clk 0:00:22]}  c2 {[%clk 0:00:57]} 43. Qc6 {[%clk 0:00:14]}  Qf6+ {[%clk 0:00:52]} 44. Kg2 {[%clk 0:00:11]}  Ng6 {[%clk 0:00:47]} 45. Qc8+ {[%clk 0:00:04]}  Kh7 {[%clk 0:00:46]} 46. Qxc2 {[%clk 0:00:05]}  h5 {[%clk 0:00:43]} 47. Bxg6+ {[%clk 0:00:04]}  fxg6 {[%clk 0:00:44]} 48. Qb3 {[%clk 0:00:03]}  Qe7 {[%clk 0:00:39]} 49. b6 {[%clk 0:00:03]}  Qb7+ {[%clk 0:00:39]} 50. Kf2 {[%clk 0:00:04]}  e5 {[%clk 0:00:37]} 51. Ke3 {[%clk 0:00:03]}  Kh8 {[%clk 0:00:31]} 52. Qb5 {[%clk 0:00:03]}  Kh7 {[%clk 0:00:31]} 53. Qb4 {[%clk 0:00:03]}  Kh8 {[%clk 0:00:30]} 54. Qf8+ {[%clk 0:00:03]}  Kh7 {[%clk 0:00:30]} 55. Qc5 {[%clk 0:00:04]}  Kh8 {[%clk 0:00:30]} 56. Kd3 {[%clk 0:00:04]}  Qf3+ {[%clk 0:00:29]} 57. Qe3 {[%clk 0:00:04]}  Qb7 {[%clk 0:00:30]} 58. Kc4 {[%clk 0:00:04]}  Qc6+ {[%clk 0:00:30]} 59. Kb4 {[%clk 0:00:04]}  Qb7 {[%clk 0:00:30]} 60. Kb5 {[%clk 0:00:04]}  Qd7+ {[%clk 0:00:28]} 61. Ka6 {[%clk 0:00:04]}  Qa4+ {[%clk 0:00:29]} 62. Kb7 {[%clk 0:00:05]}  Qd7+ {[%clk 0:00:29]} 63. Ka8 {[%clk 0:00:05]}  Qe8+ {[%clk 0:00:25]} 64. Ka7 {[%clk 0:00:05]}  Qa4+ {[%clk 0:00:26]} 65. Kb8 {[%clk 0:00:05]}  Qe8+ {[%clk 0:00:25]} 66. Kc7 {[%clk 0:00:06]}  Qe7+ {[%clk 0:00:22]} 67. Kc6 {[%clk 0:00:06]}  Qe6+ {[%clk 0:00:20]} 68. Kc5 {[%clk 0:00:07]}  Qe7+ {[%clk 0:00:20]} 69. Kd5 {[%clk 0:00:07]}  Qb7+ {[%clk 0:00:17]} 70. Kxe5 {[%clk 0:00:07]}  Qe7+ {[%clk 0:00:17]} 71. Kd4 {[%clk 0:00:07]}  Qd6+ {[%clk 0:00:17]} 72. Kc4 {[%clk 0:00:06]}  Qc6+ {[%clk 0:00:17]} 73. Qc5 {[%clk 0:00:05]}  Qe4+ {[%clk 0:00:17]} 74. Kb5 {[%clk 0:00:06]}  Qe8+ {[%clk 0:00:15]} 75. Qc6 {[%clk 0:00:06]}  Qe2+ {[%clk 0:00:15]} 76. Kc5 {[%clk 0:00:06]}  Qc2+ {[%clk 0:00:14]} 77. Kd6 {[%clk 0:00:07]}  Qd2+ {[%clk 0:00:14]} 78. Kc7 {[%clk 0:00:07]}  Qe3 {[%clk 0:00:12]} 79. b7 {[%clk 0:00:06]}  Qxg3+ {[%clk 0:00:12]} 80. Kb6 {[%clk 0:00:06]}  Qb3+ {[%clk 0:00:12]} 81. Qb5 {[%clk 0:00:07]}  Qe6+ {[%clk 0:00:12]} 82. Ka7 {[%clk 0:00:07]}  Qa2+ {[%clk 0:00:12]} 83. Qa6 {[%clk 0:00:06]}  Qf2+ {[%clk 0:00:11]} 84. Ka8 {[%clk 0:00:06]}  Qf3 {[%clk 0:00:10]} 85. Qxg6 {[%clk 0:00:06]}  Qa3+ {[%clk 0:00:09]} 86. Kb8 {[%clk 0:00:06]}  Qf8+ {[%clk 0:00:09]} 87. Kc7 {[%clk 0:00:07]}  Qe7+ {[%clk 0:00:08]} 88. Kb6 {[%clk 0:00:06]}  Qb4+ {[%clk 0:00:07]} 89. Kc6 {[%clk 0:00:06]}  Qc4+ {[%clk 0:00:03]} 90. Kd7 {[%clk 0:00:06]}  Qb5+ {[%clk 0:00:03]} 91. Kc7 {[%clk 0:00:07]}  Qc5+ {[%clk 0:00:03]} 92. Qc6 {[%clk 0:00:07]}  Qe7+ {[%clk 0:00:03]} 93. Kb6 {[%clk 0:00:08]}  Qb4+ {[%clk 0:00:03]} 94. Ka6 {[%clk 0:00:08]}  Qa3+ {[%clk 0:00:03]} 95. Kb6 {[%clk 0:00:08]}  Qb4+ {[%clk 0:00:03]} 96. Kc7 {[%clk 0:00:09]}  Qe7+ {[%clk 0:00:03]} 97. Qd7 {[%clk 0:00:08]}  Qc5+ {[%clk 0:00:04]} 98. Kb8 {[%clk 0:00:09]}  Qe5+ {[%clk 0:00:04]} 99. Kc8 {[%clk 0:00:08]}  Qc5+ {[%clk 0:00:03]} 100. Qc7 {[%clk 0:00:09]}  Qf5+ {[%clk 0:00:03]} 101. Kd8 {[%clk 0:00:09]}  Qf8+ {[%clk 0:00:03]} 102. Kd7 {[%clk 0:00:08]}  Qf5+ {[%clk 0:00:04]} 103. Kc6 {[%clk 0:00:09]}  Qc2+ {[%clk 0:00:04]} 104. Kd7 {[%clk 0:00:09]}  Qf5+ {[%clk 0:00:04]} 105. Kd8 {[%clk 0:00:10]}  Qf8+ {[%clk 0:00:04]} 106. Kd7 {[%clk 0:00:09]}  Qf5+ {[%clk 0:00:04]} 1/2-1/2


[Site "https://www.chess.com"]

[Event "Titled Tuesday Blitz May 9 Late 2023"]
[White "Pasti, Aron"]
[Black "Aggelis, Nikolaos"]
[WhiteFideId "785857"]
[BlackFideId "4213220"]
[WhiteElo "2173"]
[BlackElo "2189"]
[Result "1-0"]
[Round "04"]
[TimeControl "180+2"]
[Date "2023.05.09"]
[WhiteClock "0:01:28"]
[BlackClock "0:00:00"]

1. e4 {[%clk 0:03:00]}  c6 {[%clk 0:02:58]} 2. d4 {[%clk 0:02:55]}  d5 {[%clk 0:02:58]} 3. Nc3 {[%clk 0:02:56]}  dxe4 {[%clk 0:02:58]} 4. Nxe4 {[%clk 0:02:54]}  Nd7 {[%clk 0:02:59]} 5. Bc4 {[%clk 0:02:42]}  Ngf6 {[%clk 0:02:57]} 6. Ng5 {[%clk 0:02:40]}  e6 {[%clk 0:02:56]} 7. N1f3 {[%clk 0:02:36]}  Nb6 {[%clk 0:02:45]} 8. Bb3 {[%clk 0:02:32]}  c5 {[%clk 0:02:46]} 9. c3 {[%clk 0:02:21]}  h6 {[%clk 0:02:43]} 10. Nh3 {[%clk 0:02:12]}  Be7 {[%clk 0:02:37]} 11. O-O {[%clk 0:02:12]}  O-O {[%clk 0:02:31]} 12. Nf4 {[%clk 0:02:11]}  Nbd5 {[%clk 0:02:28]} 13. Nxd5 {[%clk 0:02:11]}  Nxd5 {[%clk 0:02:29]} 14. dxc5 {[%clk 0:02:09]}  Bxc5 {[%clk 0:02:28]} 15. Bxd5 {[%clk 0:02:09]}  exd5 {[%clk 0:02:24]} 16. Nd4 {[%clk 0:02:08]}  Qh4 {[%clk 0:02:15]} 17. Be3 {[%clk 0:01:58]}  Bd6 {[%clk 0:02:11]} 18. h3 {[%clk 0:01:49]}  Re8 {[%clk 0:01:50]} 19. Qf3 {[%clk 0:01:46]}  Re4 {[%clk 0:01:42]} 20. Rad1 {[%clk 0:01:43]}  g6 {[%clk 0:01:23]} 21. Nb5 {[%clk 0:01:38]}  Bf8 {[%clk 0:00:59]} 22. Nc7 {[%clk 0:01:36]}  Rb8 {[%clk 0:00:57]} 23. Nxd5 {[%clk 0:01:36]}  Bg7 {[%clk 0:00:48]} 24. Bf4 {[%clk 0:01:36]}  Rxf4 {[%clk 0:00:33]} 25. Qxf4 {[%clk 0:01:37]}  Qxf4 {[%clk 0:00:28]} 26. Nxf4 {[%clk 0:01:38]}  Bf5 {[%clk 0:00:23]} 27. Rfe1 {[%clk 0:01:38]}  b5 {[%clk 0:00:19]} 28. g4 {[%clk 0:01:38]}  Bc2 {[%clk 0:00:11]} 29. Rd2 {[%clk 0:01:38]}  g5 {[%clk 0:00:08]} 30. Rxc2 {[%clk 0:01:34]}  gxf4 {[%clk 0:00:09]} 31. Rd2 {[%clk 0:01:34]}  b4 {[%clk 0:00:09]} 32. c4 {[%clk 0:01:35]}  a5 {[%clk 0:00:08]} 33. Re4 {[%clk 0:01:32]}  f3 {[%clk 0:00:06]} 34. b3 {[%clk 0:01:30]}  Rc8 {[%clk 0:00:03]} 35. Rd3 {[%clk 0:01:29]}  a4 {[%clk 0:00:04]} 36. Rxf3 {[%clk 0:01:29]}  axb3 {[%clk 0:00:04]} 37. axb3 {[%clk 0:01:29]}  Ra8 {[%clk 0:00:05]} 38. Re7 {[%clk 0:01:28]}  Rf8 {[%clk 0:00:01]} 39. c5 {[%clk 0:01:28]}  Bd4 {[%clk 0:00:01]} 40. c6 {[%clk 0:01:28]}  f6 {[%clk 0:00:01]} 41. c7 {[%clk 0:01:27]}  Rc8 {[%clk 0:00:00]} 42. Rd7 {[%clk 0:01:28]} 1-0


[Site "https://www.chess.com"]

[Event "Titled Tuesday Blitz May 9 Late 2023"]
[White "Bayo Milagro, Alvaro"]
[Black "Gerbelli Neto, Eduardo"]
[WhiteFideId "22275240"]
[BlackFideId "2103281"]
[WhiteElo "2270"]
[BlackElo "2178"]
[Result "1-0"]
[Round "04"]
[TimeControl "180+2"]
[Date "2023.05.09"]
[WhiteClock "0:00:49"]
[BlackClock "0:00:10"]

1. Nf3 {[%clk 0:03:00]}  Nf6 {[%clk 0:02:59]} 2. c4 {[%clk 0:03:00]}  c5 {[%clk 0:02:59]} 3. d4 {[%clk 0:02:57]}  cxd4 {[%clk 0:02:56]} 4. Nxd4 {[%clk 0:02:58]}  e5 {[%clk 0:02:56]} 5. Nb5 {[%clk 0:02:58]}  d5 {[%clk 0:02:48]} 6. cxd5 {[%clk 0:02:58]}  Bc5 {[%clk 0:02:48]} 7. Qc2 {[%clk 0:02:57]}  Qb6 {[%clk 0:02:34]} 8. Be3 {[%clk 0:02:57]}  Nbd7 {[%clk 0:02:20]} 9. Bxc5 {[%clk 0:02:55]}  Qxb5 {[%clk 0:02:15]} 10. Ba3 {[%clk 0:02:44]}  Qxd5 {[%clk 0:02:10]} 11. Nc3 {[%clk 0:02:42]}  Qa5 {[%clk 0:02:05]} 12. e3 {[%clk 0:02:37]}  Nb6 {[%clk 0:02:00]} 13. Bb5+ {[%clk 0:02:24]}  Bd7 {[%clk 0:01:59]} 14. Bxd7+ {[%clk 0:02:25]}  Nbxd7 {[%clk 0:01:55]} 15. O-O {[%clk 0:02:23]}  Rc8 {[%clk 0:01:33]} 16. Rad1 {[%clk 0:02:09]}  b5 {[%clk 0:01:25]} 17. Bd6 {[%clk 0:02:04]}  b4 {[%clk 0:01:21]} 18. f4 {[%clk 0:01:49]}  bxc3 {[%clk 0:01:12]} 19. fxe5 {[%clk 0:01:47]}  Nxe5 {[%clk 0:00:58]} 20. Qf5 {[%clk 0:01:39]}  Nf3+ {[%clk 0:00:29]} 21. Qxf3 {[%clk 0:01:36]}  c2 {[%clk 0:00:25]} 22. Qb7 {[%clk 0:01:29]}  Qd8 {[%clk 0:00:18]} 23. Qb5+ {[%clk 0:01:15]}  Qd7 {[%clk 0:00:18]} 24. Qe5+ {[%clk 0:01:03]}  Qe6 {[%clk 0:00:18]} 25. Rc1 {[%clk 0:00:52]}  Qxe5 {[%clk 0:00:16]} 26. Bxe5 {[%clk 0:00:53]}  Ke7 {[%clk 0:00:14]} 27. Bxf6+ {[%clk 0:00:49]}  gxf6 {[%clk 0:00:14]} 28. Rf2 {[%clk 0:00:50]}  Rhd8 {[%clk 0:00:13]} 29. Rfxc2 {[%clk 0:00:50]}  Rd2 {[%clk 0:00:10]} 30. Rxc8 {[%clk 0:00:49]} 1-0


[Site "https://www.chess.com"]

[Event "Titled Tuesday Blitz May 9 Late 2023"]
[White "Reprintsev, Alexander"]
[Black "Rangel, Daniel"]
[WhiteFideId "14100541"]
[BlackFideId "2124475"]
[WhiteElo "2218"]
[BlackElo "2256"]
[Result "0-1"]
[Round "04"]
[TimeControl "180+2"]
[Date "2023.05.09"]
[WhiteClock "0:00:03"]
[BlackClock "0:00:17"]

1. e4 {[%clk 0:03:00]}  c5 {[%clk 0:02:59]} 2. b3 {[%clk 0:03:00]}  d6 {[%clk 0:02:59]} 3. Bb2 {[%clk 0:02:24]}  e5 {[%clk 0:02:57]} 4. f4 {[%clk 0:02:17]}  exf4 {[%clk 0:02:54]} 5. Qf3 {[%clk 0:02:03]}  Nc6 {[%clk 0:02:45]} 6. Qxf4 {[%clk 0:02:00]}  Nge7 {[%clk 0:02:28]} 7. Bb5 {[%clk 0:01:37]}  Bd7 {[%clk 0:02:16]} 8. Nf3 {[%clk 0:01:29]}  Ng6 {[%clk 0:02:13]} 9. Qg3 {[%clk 0:01:24]}  Be7 {[%clk 0:02:11]} 10. Bxg7 {[%clk 0:01:09]}  Rg8 {[%clk 0:02:11]} 11. Bc3 {[%clk 0:01:02]}  Nce5 {[%clk 0:02:11]} 12. Bxd7+ {[%clk 0:01:01]}  Qxd7 {[%clk 0:02:01]} 13. Nxe5 {[%clk 0:00:45]}  dxe5 {[%clk 0:02:00]} 14. Qf2 {[%clk 0:00:32]}  O-O-O {[%clk 0:01:52]} 15. g3 {[%clk 0:00:29]}  Kb8 {[%clk 0:01:37]} 16. Na3 {[%clk 0:00:28]}  b5 {[%clk 0:01:31]} 17. Bb2 {[%clk 0:00:24]}  c4 {[%clk 0:01:18]} 18. O-O-O {[%clk 0:00:20]}  Qc7 {[%clk 0:01:10]} 19. Rhf1 {[%clk 0:00:19]}  Qa5 {[%clk 0:01:09]} 20. Nb1 {[%clk 0:00:18]}  Qxa2 {[%clk 0:01:08]} 21. Qxf7 {[%clk 0:00:17]}  Rc8 {[%clk 0:01:02]} 22. Nc3 {[%clk 0:00:17]}  Qa6 {[%clk 0:00:59]} 23. Qd5 {[%clk 0:00:16]}  cxb3 {[%clk 0:00:47]} 24. Qxb3 {[%clk 0:00:15]}  b4 {[%clk 0:00:38]} 25. Nd5 {[%clk 0:00:13]}  Bc5 {[%clk 0:00:36]} 26. Rf7 {[%clk 0:00:12]}  Ka8 {[%clk 0:00:31]} 27. Rdf1 {[%clk 0:00:12]}  Qc6 {[%clk 0:00:27]} 28. Rxh7 {[%clk 0:00:10]}  Rgf8 {[%clk 0:00:24]} 29. Rff7 {[%clk 0:00:09]}  Rxf7 {[%clk 0:00:23]} 30. Rxf7 {[%clk 0:00:10]}  Rf8 {[%clk 0:00:19]} 31. Rxf8+ {[%clk 0:00:10]}  Nxf8 {[%clk 0:00:19]} 32. Qc4 {[%clk 0:00:10]}  Ne6 {[%clk 0:00:18]} 33. h4 {[%clk 0:00:09]}  Nd4 {[%clk 0:00:18]} 34. Bxd4 {[%clk 0:00:09]}  exd4 {[%clk 0:00:18]} 35. Nf4 {[%clk 0:00:08]}  b3 {[%clk 0:00:17]} 36. Qd5 {[%clk 0:00:09]}  Ba3+ {[%clk 0:00:17]} 37. Kb1 {[%clk 0:00:08]}  bxc2+ {[%clk 0:00:17]} 38. Ka2 {[%clk 0:00:08]}  Qxd5+ {[%clk 0:00:16]} 39. Nxd5 {[%clk 0:00:03]}  c1=Q {[%clk 0:00:17]} 0-1


[Site "https://www.chess.com"]

[Event "Titled Tuesday Blitz May 9 Late 2023"]
[White "Hoffmann, Asa"]
[Black "Altman, Joshua"]
[WhiteFideId "2001470"]
[BlackFideId "426210"]
[WhiteElo "2117"]
[BlackElo "2028"]
[Result "0-1"]
[Round "04"]
[TimeControl "180+2"]
[Date "2023.05.09"]
[WhiteClock "0:00:00"]
[BlackClock "0:00:30"]

1. d4 {[%clk 0:02:50]}  Nf6 {[%clk 0:02:59]} 2. Bg5 {[%clk 0:02:46]}  e6 {[%clk 0:02:58]} 3. Nd2 {[%clk 0:02:46]}  c5 {[%clk 0:02:51]} 4. e3 {[%clk 0:02:46]}  cxd4 {[%clk 0:02:50]} 5. exd4 {[%clk 0:02:46]}  d6 {[%clk 0:02:50]} 6. Bd3 {[%clk 0:02:45]}  Be7 {[%clk 0:02:51]} 7. Ngf3 {[%clk 0:02:45]}  O-O {[%clk 0:02:51]} 8. O-O {[%clk 0:02:44]}  Nbd7 {[%clk 0:02:47]} 9. c3 {[%clk 0:02:44]}  b6 {[%clk 0:02:47]} 10. Qe2 {[%clk 0:02:40]}  Bb7 {[%clk 0:02:46]} 11. Rfe1 {[%clk 0:02:40]}  h6 {[%clk 0:02:46]} 12. Bh4 {[%clk 0:02:40]}  Re8 {[%clk 0:02:46]} 13. h3 {[%clk 0:02:40]}  Bf8 {[%clk 0:02:45]} 14. Bg3 {[%clk 0:02:39]}  a6 {[%clk 0:02:42]} 15. a4 {[%clk 0:02:38]}  Qc7 {[%clk 0:02:40]} 16. Nc4 {[%clk 0:02:35]}  Bc6 {[%clk 0:02:17]} 17. b3 {[%clk 0:02:32]}  Nd5 {[%clk 0:02:09]} 18. Rec1 {[%clk 0:02:25]}  Rec8 {[%clk 0:02:05]} 19. Ne3 {[%clk 0:02:19]}  N5f6 {[%clk 0:01:57]} 20. Bxa6 {[%clk 0:02:18]}  Bxf3 {[%clk 0:01:49]} 21. gxf3 {[%clk 0:02:18]}  Re8 {[%clk 0:01:48]} 22. Bb5 {[%clk 0:02:16]}  e5 {[%clk 0:01:46]} 23. Qd3 {[%clk 0:02:11]}  e4 {[%clk 0:01:44]} 24. Qc4 {[%clk 0:02:03]}  Qd8 {[%clk 0:01:29]} 25. fxe4 {[%clk 0:01:35]}  Nxe4 {[%clk 0:01:26]} 26. Re1 {[%clk 0:01:33]}  Nxg3 {[%clk 0:01:24]} 27. fxg3 {[%clk 0:01:33]}  Qg5 {[%clk 0:01:12]} 28. Ng2 {[%clk 0:01:29]}  Rec8 {[%clk 0:01:04]} 29. Qd3 {[%clk 0:01:28]}  Nf6 {[%clk 0:01:02]} 30. Rf1 {[%clk 0:01:23]}  d5 {[%clk 0:00:58]} 31. Rf5 {[%clk 0:01:12]}  Qg6 {[%clk 0:00:58]} 32. Raf1 {[%clk 0:01:11]}  Bd6 {[%clk 0:00:55]} 33. Kh2 {[%clk 0:01:09]}  Ne4 {[%clk 0:00:52]} 34. Rxd5 {[%clk 0:00:47]}  Rxc3 {[%clk 0:00:51]} 35. Nh4 {[%clk 0:00:16]}  Bxg3+ {[%clk 0:00:43]} 36. Kh1 {[%clk 0:00:13]}  Qe6 {[%clk 0:00:32]} 37. Rdf5 {[%clk 0:00:03]}  Rxd3 {[%clk 0:00:32]} 38. Bxd3 {[%clk 0:00:03]}  Bxh4 {[%clk 0:00:29]} 39. R5f4 {[%clk 0:00:01]}  Ng3+ {[%clk 0:00:29]} 40. Kg2 {[%clk 0:00:00]}  Nxf1 {[%clk 0:00:30]} 0-1


[Site "https://www.chess.com"]

[Event "Titled Tuesday Blitz May 9 Late 2023"]
[White "Bryant, Todd"]
[Black "ArtemDyachuk"]
[WhiteFideId "2031299"]
[WhiteElo "2359"]
[BlackElo "2520"]
[Result "1-0"]
[Round "04"]
[TimeControl "180+2"]
[Date "2023.05.09"]
[WhiteClock "0:00:18"]
[BlackClock "0:00:20"]

1. e4 {[%clk 0:03:00]}  c5 {[%clk 0:02:58]} 2. Nf3 {[%clk 0:03:00]}  e6 {[%clk 0:02:57]} 3. d4 {[%clk 0:03:01]}  cxd4 {[%clk 0:02:58]} 4. Nxd4 {[%clk 0:03:01]}  Nc6 {[%clk 0:02:59]} 5. Nc3 {[%clk 0:03:02]}  Nf6 {[%clk 0:02:58]} 6. Ndb5 {[%clk 0:03:01]}  Bb4 {[%clk 0:02:46]} 7. a3 {[%clk 0:03:00]}  Bxc3+ {[%clk 0:02:42]} 8. Nxc3 {[%clk 0:03:01]}  O-O {[%clk 0:02:42]} 9. Bd3 {[%clk 0:02:57]}  d5 {[%clk 0:02:39]} 10. exd5 {[%clk 0:02:58]}  exd5 {[%clk 0:02:39]} 11. O-O {[%clk 0:02:58]}  Bg4 {[%clk 0:02:34]} 12. f3 {[%clk 0:02:58]}  Bh5 {[%clk 0:02:34]} 13. Bg5 {[%clk 0:02:56]}  Ne5 {[%clk 0:02:28]} 14. Bxf6 {[%clk 0:02:44]}  Qxf6 {[%clk 0:02:19]} 15. Nxd5 {[%clk 0:02:42]}  Qd6 {[%clk 0:02:11]} 16. Kh1 {[%clk 0:02:09]}  Rad8 {[%clk 0:02:03]} 17. c4 {[%clk 0:02:07]}  b5 {[%clk 0:02:02]} 18. b3 {[%clk 0:01:58]}  bxc4 {[%clk 0:02:00]} 19. bxc4 {[%clk 0:01:59]}  Qc5 {[%clk 0:02:00]} 20. Qe2 {[%clk 0:01:46]}  Rfe8 {[%clk 0:01:58]} 21. Qc2 {[%clk 0:01:32]}  Nxd3 {[%clk 0:01:50]} 22. Qxd3 {[%clk 0:01:33]}  Bg6 {[%clk 0:01:51]} 23. Qb3 {[%clk 0:00:57]}  Re2 {[%clk 0:01:49]} 24. Rfe1 {[%clk 0:00:44]}  Qd4 {[%clk 0:01:37]} 25. Rad1 {[%clk 0:00:32]}  h5 {[%clk 0:01:09]} 26. Rxe2 {[%clk 0:00:26]}  Qc5 {[%clk 0:00:24]} 27. Ne7+ {[%clk 0:00:21]}  Kh7 {[%clk 0:00:24]} 28. Rxd8 {[%clk 0:00:16]}  Qg5 {[%clk 0:00:22]} 29. Rd1 {[%clk 0:00:13]}  h4 {[%clk 0:00:18]} 30. Nxg6 {[%clk 0:00:13]}  fxg6 {[%clk 0:00:19]} 31. Qe3 {[%clk 0:00:13]}  Qf5 {[%clk 0:00:18]} 32. Qe4 {[%clk 0:00:13]}  Qh5 {[%clk 0:00:18]} 33. Rd5 {[%clk 0:00:11]}  Qh6 {[%clk 0:00:18]} 34. Qe3 {[%clk 0:00:10]}  g5 {[%clk 0:00:15]} 35. Qxg5 {[%clk 0:00:08]}  h3 {[%clk 0:00:13]} 36. Qxh6+ {[%clk 0:00:08]}  Kxh6 {[%clk 0:00:14]} 37. gxh3 {[%clk 0:00:08]}  g6 {[%clk 0:00:15]} 38. Rd6 {[%clk 0:00:08]}  a6 {[%clk 0:00:15]} 39. Rxg6+ {[%clk 0:00:09]}  Kxg6 {[%clk 0:00:16]} 40. Re5 {[%clk 0:00:09]}  Kf6 {[%clk 0:00:16]} 41. f4 {[%clk 0:00:09]}  a5 {[%clk 0:00:16]} 42. Kg2 {[%clk 0:00:10]}  a4 {[%clk 0:00:16]} 43. Kf3 {[%clk 0:00:11]}  Kg6 {[%clk 0:00:16]} 44. Kg4 {[%clk 0:00:12]}  Kf6 {[%clk 0:00:17]} 45. Kf3 {[%clk 0:00:12]}  Kg6 {[%clk 0:00:18]} 46. Ke4 {[%clk 0:00:13]}  Kf6 {[%clk 0:00:19]} 47. Kd5 {[%clk 0:00:14]}  Kg6 {[%clk 0:00:20]} 48. Ke6 {[%clk 0:00:14]}  Kh6 {[%clk 0:00:20]} 49. Rg5 {[%clk 0:00:15]}  Kh7 {[%clk 0:00:19]} 50. Kf6 {[%clk 0:00:16]}  Kh6 {[%clk 0:00:20]} 51. Kf7 {[%clk 0:00:16]}  Kh7 {[%clk 0:00:20]} 52. Rg6 {[%clk 0:00:17]}  Kh8 {[%clk 0:00:20]} 53. Rh6# {[%clk 0:00:18]} 1-0


[Site "https://www.chess.com"]

[Event "Titled Tuesday Blitz May 9 Late 2023"]
[White "Sanhueza, Cristian"]
[Black "Bashkansky, Ethan"]
[WhiteFideId "116815"]
[BlackFideId "2071533"]
[WhiteElo "2174"]
[BlackElo "2356"]
[Result "1-0"]
[Round "04"]
[TimeControl "180+2"]
[Date "2023.05.09"]
[WhiteClock "0:01:32"]
[BlackClock "0:01:50"]

1. e4 {[%clk 0:03:00]}  c6 {[%clk 0:02:59]} 2. Nf3 {[%clk 0:03:00]}  d5 {[%clk 0:03:00]} 3. Nc3 {[%clk 0:03:01]}  dxe4 {[%clk 0:03:00]} 4. Nxe4 {[%clk 0:03:02]}  Bg4 {[%clk 0:03:00]} 5. h3 {[%clk 0:02:59]}  Bh5 {[%clk 0:02:57]} 6. Ng3 {[%clk 0:02:59]}  Bg6 {[%clk 0:02:57]} 7. h4 {[%clk 0:02:53]}  f6 {[%clk 0:02:53]} 8. d4 {[%clk 0:02:46]}  Nd7 {[%clk 0:02:47]} 9. h5 {[%clk 0:02:42]}  Bf7 {[%clk 0:02:46]} 10. Bd3 {[%clk 0:02:42]}  e5 {[%clk 0:02:41]} 11. dxe5 {[%clk 0:02:42]}  Nxe5 {[%clk 0:02:41]} 12. Nxe5 {[%clk 0:02:42]}  fxe5 {[%clk 0:02:42]} 13. Qe2 {[%clk 0:02:37]}  Qc7 {[%clk 0:02:38]} 14. Bf4 {[%clk 0:02:30]}  Bd6 {[%clk 0:02:35]} 15. Nf5 {[%clk 0:02:27]}  O-O-O {[%clk 0:02:14]} 16. Nxd6+ {[%clk 0:02:22]}  Qxd6 {[%clk 0:02:15]} 17. Bf5+ {[%clk 0:02:12]}  Be6 {[%clk 0:02:11]} 18. Bxe5 {[%clk 0:02:02]}  Qd5 {[%clk 0:02:05]} 19. c4 {[%clk 0:01:42]}  Qd7 {[%clk 0:01:57]} 20. Bxe6 {[%clk 0:01:33]}  Qxe6 {[%clk 0:01:50]} 21. Bxg7 {[%clk 0:01:32]} 1-0


[Site "https://www.chess.com"]

[Event "Titled Tuesday Blitz May 9 Late 2023"]
[White "FoxOnTheRun97"]
[Black "Shapiro, Daniel"]
[BlackFideId "2001780"]
[WhiteElo "2514"]
[BlackElo "2355"]
[Result "1-0"]
[Round "04"]
[TimeControl "180+2"]
[Date "2023.05.09"]
[WhiteClock "0:01:19"]
[BlackClock "0:00:08"]

1. d4 {[%clk 0:03:00]}  Nf6 {[%clk 0:02:59]} 2. Bg5 {[%clk 0:03:00]}  d5 {[%clk 0:02:56]} 3. Bxf6 {[%clk 0:02:59]}  exf6 {[%clk 0:02:56]} 4. e3 {[%clk 0:02:59]}  Bd6 {[%clk 0:02:52]} 5. g3 {[%clk 0:02:59]}  O-O {[%clk 0:02:50]} 6. Bg2 {[%clk 0:02:59]}  Be6 {[%clk 0:02:48]} 7. Ne2 {[%clk 0:02:59]}  c6 {[%clk 0:02:46]} 8. O-O {[%clk 0:02:59]}  Nd7 {[%clk 0:02:43]} 9. Qd3 {[%clk 0:02:58]}  g6 {[%clk 0:02:42]} 10. b3 {[%clk 0:02:55]}  a6 {[%clk 0:02:32]} 11. c4 {[%clk 0:02:52]}  Re8 {[%clk 0:02:25]} 12. Nbc3 {[%clk 0:02:50]}  dxc4 {[%clk 0:01:59]} 13. bxc4 {[%clk 0:02:51]}  Nb6 {[%clk 0:01:49]} 14. d5 {[%clk 0:02:34]}  Be5 {[%clk 0:01:41]} 15. Rab1 {[%clk 0:02:16]}  Rb8 {[%clk 0:01:30]} 16. Nf4 {[%clk 0:01:55]}  Bxf4 {[%clk 0:00:56]} 17. gxf4 {[%clk 0:01:52]}  cxd5 {[%clk 0:00:48]} 18. cxd5 {[%clk 0:01:51]}  Bd7 {[%clk 0:00:32]} 19. Qd4 {[%clk 0:01:29]}  Nc8 {[%clk 0:00:30]} 20. Ne4 {[%clk 0:01:28]}  Bf5 {[%clk 0:00:28]} 21. Nxf6+ {[%clk 0:01:27]}  Kf8 {[%clk 0:00:20]} 22. Nxh7+ {[%clk 0:01:26]}  Ke7 {[%clk 0:00:19]} 23. e4 {[%clk 0:01:20]}  Bd7 {[%clk 0:00:08]} 24. Qf6# {[%clk 0:01:19]} 1-0


[Site "https://www.chess.com"]